fUST/lending_fUST_20251024
["ID","MTS","AMOUNT","RATE_DAILY","PERIOD"]
[392255419,1761282374420,10000.01,0.00020836,2]
[392255420,1761282374443,10000.01,0.00020836,2]
[392255421,1761282374466,10000.01,0.00020836,2]
[392255422,1761282374488,10000.01,0.00020836,2]
[392255423,1761282374511,10000.01,0.00020836,2]
[392255424,1761282374534,10000.01,0.00020836,2]
[392255425,1761282374557,10000.01,0.00020836,2]
[392255426,1761282374580,10000.01,0.00020836,2]
[392255427,1761282374603,10000.01,0.00020836,2]
[392255428,1761282386999,-1586.08,0.00020826,10]
[392255429,1761282394682,-2585.07,0.00020826,10]
[392255430,1761282394714,-303.60454513,0.00020835,2]
[392255431,1761282394744,-622.58561642,0.00020835,2]
[392255432,1761282394774,-500.0,0.00020835,2]
[392255433,1761282394805,-500.0,0.00020835,2]
[392255434,1761282394837,-477.4896769,0.00020835,2]
[392255435,1761282397337,-2150.76011342,0.00020627,2]
[392255436,1761282397366,-22.5103231,0.00020835,2]
[392255437,1761282397396,-500.0,0.00020835,2]
[392255438,1761282397424,-500.0,0.00020835,2]
[392255439,1761282397452,-500.0,0.00020835,2]
[392255440,1761282397480,-403.17313395,0.00020835,2]
[392255441,1761282397507,-500.0,0.00020835,2]
[392255442,1761282397535,-347.12285906,0.00020835,2]
[392255443,1761282397705,-152.87714094,0.00020835,2]
[392255444,1761282397734,-500.0,0.00020835,2]
[392255445,1761282397763,-500.0,0.00020835,2]
[392255446,1761282397791,-500.0,0.00020835,2]
[392255447,1761282397820,-500.0,0.00020835,2]
[392255448,1761282397851,-500.0,0.00020835,2]
[392255449,1761282397878,-500.0,0.00020835,2]
[392255450,1761282397908,-500.0,0.00020835,2]
[392255451,1761282397936,-500.0,0.00020835,2]
[392255452,1761282397963,-500.0,0.00020835,2]
[392255453,1761282397990,-194.25571812,0.00020835,2]
[392255454,1761282398058,-305.74428188,0.00020835,2]
[392255455,1761282398086,-500.0,0.00020835,2]
[392255456,1761282398116,-500.0,0.00020835,2]
[392255457,1761282398145,-192.29253544,0.00020835,2]
[392255458,1761282398175,-500.0,0.00020835,2]
[392255459,1761282398205,-500.0,0.00020835,2]
[392255460,1761282398232,-500.0,0.00020835,2]
[392255461,1761282398261,-442.67371837,0.00020835,2]
[392255462,1761282398288,-260.58136678,0.00020835,2]
[392255463,1761282398315,-500.0,0.00020835,2]
[392255464,1761282398344,-500.0,0.00020835,2]
[392255465,1761282398371,-97.42619506,0.00020835,2]
[392255466,1761282398864,-402.57380494,0.00020835,2]
[392255467,1761282398895,-602.51870389,0.00020835,2]
[392255468,1761282398927,-500.0,0.00020835,2]
[392255469,1761282398955,-500.0,0.00020835,2]
[392255470,1761282399078,-500.0,0.00020835,2]
[392255471,1761282399109,-500.0,0.00020835,2]
[392255472,1761282399138,-500.0,0.00020835,2]
[392255473,1761282399167,-500.0,0.00020835,2]
[392255474,1761282399196,-500.0,0.00020835,2]
[392255475,1761282399225,-489.82498234,0.00020835,2]
[392255476,1761282399326,-10.17501766,0.00020835,2]
[392255477,1761282399357,-455.0,0.00020835,2]
[392255478,1761282399385,-500.0,0.00020835,2]
[392255479,1761282399413,-500.0,0.00020835,2]
[392255480,1761282399440,-500.0,0.00020835,2]
[392255481,1761282399470,-500.0,0.00020835,2]
[392255482,1761282399499,-500.0,0.00020835,2]
[392255483,1761282399527,-183.1733174,0.00020835,2]
[392255484,1761282399565,-500.0,0.00020835,2]
[392255485,1761282399597,-500.0,0.00020835,2]
[392255486,1761282399625,-500.0,0.00020835,2]
[392255487,1761282399652,-203.31332988,0.00020835,2]
[392255488,1761282399755,-296.68667012,0.00020835,2]
[392255489,1761282399783,-500.0,0.00020835,2]
[392255490,1761282399811,-500.0,0.00020835,2]
[392255491,1761282399838,-500.0,0.00020835,2]
[392255492,1761282399868,-500.0,0.00020835,2]
[392255493,1761282399897,-500.0,0.00020835,2]
[392255494,1761282399927,-500.0,0.00020835,2]
[392255495,1761282399966,-500.0,0.00020835,2]
[392255496,1761282400004,-500.0,0.00020835,2]
[392255497,1761282400039,-500.0,0.00020835,2]
[392255498,1761282400186,-500.0,0.00020835,2]
[392255499,1761282400219,-500.0,0.00020835,2]
[392255500,1761282400254,-500.0,0.00020835,2]
[392255501,1761282400288,-500.0,0.00020835,2]
[392255502,1761282400321,-500.0,0.00020835,2]
[392255503,1761282400354,-500.0,0.00020835,2]
[392255504,1761282400393,-155.51326437,0.00020835,2]
[392255505,1761282400429,-500.0,0.00020835,2]
[392255506,1761282400467,-500.0,0.00020835,2]
[392255507,1761282400500,-500.0,0.00020835,2]
[392255508,1761282400535,-188.98347126,0.00020835,2]
[392255509,1761282400642,-311.01652874,0.00020835,2]
[392255510,1761282400677,-500.0,0.00020835,2]
[392255511,1761282400712,-500.0,0.00020835,2]
[392255512,1761282400751,-500.0,0.00020835,2]
[392255513,1761282400787,-500.0,0.00020835,2]
[392255514,1761282400820,-500.0,0.00020835,2]
[392255515,1761282400856,-500.0,0.00020835,2]
[392255516,1761282400891,-500.0,0.00020835,2]
[392255517,1761282400928,-500.0,0.00020835,2]
[392255518,1761282400963,-500.0,0.00020835,2]
[392255519,1761282403129,-500.0,0.00020835,2]
[392255520,1761282403159,-500.0,0.00020835,2]
[392255521,1761282403192,-500.0,0.00020835,2]
[392255522,1761282403223,-500.0,0.00020835,2]
[392255523,1761282403252,-500.0,0.00020835,2]
[392255524,1761282403281,-500.0,0.00020835,2]
[392255525,1761282403310,-500.0,0.00020835,2]
[392255526,1761282403339,-500.0,0.00020835,2]
[392255527,1761282403367,-500.0,0.00020835,2]
[392255528,1761282403397,-500.0,0.00020835,2]
[392255529,1761282403604,-500.0,0.00020835,2]
[392255530,1761282403634,-500.0,0.00020835,2]
[392255531,1761282403661,-500.0,0.00020835,2]
[392255532,1761282403690,-500.0,0.00020835,2]
[392255533,1761282403721,-358.99372158,0.00020835,2]
[392255534,1761282403750,-500.0,0.00020835,2]
[392255535,1761282403779,-500.0,0.00020835,2]
[392255536,1761282403808,-500.0,0.00020835,2]
[392255537,1761282403838,-500.0,0.00020835,2]
[392255538,1761282403870,-500.0,0.00020835,2]
[392255539,1761282403980,-500.0,0.00020835,2]
[392255540,1761282404009,-500.0,0.00020835,2]
[392255541,1761282404038,-500.0,0.00020835,2]
[392255542,1761282404065,-500.0,0.00020835,2]
[392255543,1761282404587,2154.22,0.00020826,10]
[392255544,1761282415445,1795.18,0.00020826,10]
[392255545,1761282419314,2050.61,0.00020836,2]
[392255546,1761282419337,689.505329,0.00020836,2]
[392255547,1761282421223,150.0,0.00019671,2]
[392255548,1761282421633,150.0,0.00020607,2]
[392255549,1761282422795,300.0,0.00020835,2]
[392255551,1761282426023,306.04468102,0.00020835,2]
[392255552,1761282426059,500.0,0.00020835,2]
[392255553,1761282426090,500.0,0.00020835,2]
[392255554,1761282426125,500.0,0.00020835,2]
[392255555,1761282426155,500.0,0.00020835,2]
[392255556,1761282426185,500.0,0.00020835,2]
[392255557,1761282426214,500.0,0.00020835,2]
[392255558,1761282426244,500.0,0.00020835,2]
[392255559,1761282426272,500.0,0.00020835,2]
[392255560,1761282426302,500.0,0.00020835,2]
[392255561,1761282426330,500.0,0.00020835,2]
[392255562,1761282426357,500.0,0.00020835,2]
[392255563,1761282426385,500.0,0.00020835,2]
[392255564,1761282426413,500.0,0.00020835,2]
[392255565,1761282426441,500.0,0.00020835,2]
[392255566,1761282426566,500.0,0.00020835,2]
[392255567,1761282426595,500.0,0.00020835,2]
[392255568,1761282426624,404.45998998,0.00020835,2]
[392255569,1761282426647,95.54001002,0.00020835,2]
[392255570,1761282426677,500.0,0.00020835,2]
[392255571,1761282426705,500.0,0.00020835,2]
[392255572,1761282426734,500.0,0.00020835,2]
[392255573,1761282426763,500.0,0.00020835,2]
[392255574,1761282426790,358.99372158,0.00020835,2]
[392255575,1761282426819,500.0,0.00020835,2]
[392255576,1761282426847,155.51326437,0.00020835,2]
[392255577,1761282426879,500.0,0.00020835,2]
[392255578,1761282426912,500.0,0.00020835,2]
[392255579,1761282426943,500.0,0.00020835,2]
[392255580,1761282426981,500.0,0.00020835,2]
[392255581,1761282427009,500.0,0.00020835,2]
[392255582,1761282427037,500.0,0.00020835,2]
[392255583,1761282427065,1495.99,0.00020826,10]
[392255584,1761282427093,500.0,0.00020835,2]
[392255585,1761282427121,183.1733174,0.00020835,2]
[392255586,1761282427149,500.0,0.00020835,2]
[392255587,1761282427181,500.0,0.00020835,2]
[392255588,1761282427214,500.0,0.00020835,2]
[392255589,1761282427244,210.79968663,0.00020835,2]
[392255590,1761282427267,289.20031337,0.00020835,2]
[392255591,1761282427296,500.0,0.00020835,2]
[392255592,1761282427323,500.0,0.00020835,2]
[392255593,1761282427352,500.0,0.00020835,2]
[392255594,1761282427380,500.0,0.00020835,2]
[392255595,1761282427407,500.0,0.00020835,2]
[392255596,1761282427438,500.0,0.00020835,2]
[392255597,1761282427466,500.0,0.00020835,2]
[392255598,1761282427495,500.0,0.00020835,2]
[392255599,1761282427523,500.0,0.00020835,2]
[392255600,1761282427553,500.0,0.00020835,2]
[392255601,1761282427583,500.0,0.00020835,2]
[392255602,1761282427612,500.0,0.00020835,2]
[392255603,1761282427641,500.0,0.00020835,2]
[392255604,1761282427670,500.0,0.00020835,2]
[392255605,1761282427698,500.0,0.00020835,2]
[392255606,1761282427727,500.0,0.00020835,2]
[392255607,1761282427755,500.0,0.00020835,2]
[392255608,1761282427786,500.0,0.00020835,2]
[392255609,1761282427815,500.0,0.00020835,2]
[392255610,1761282427843,210.80968663,0.00020835,2]
[392255611,1761282427871,289.19031337,0.00020835,2]
[392255612,1761282427901,344.93068656,0.00020835,2]
[392255613,1761282427935,500.0,0.00020835,2]
[392255614,1761282427966,500.0,0.00020835,2]
[392255615,1761282427995,500.0,0.00020835,2]
[392255616,1761282428027,500.0,0.00020835,2]
[392255617,1761282428056,500.0,0.00020835,2]
[392255618,1761282428084,500.0,0.00020835,2]
[392255619,1761282428111,500.0,0.00020835,2]
[392255620,1761282428139,500.0,0.00020835,2]
[392255621,1761282428168,500.0,0.00020835,2]
[392255622,1761282428227,500.0,0.00020835,2]
[392255623,1761282428254,500.0,0.00020835,2]
[392255624,1761282428282,500.0,0.00020835,2]
[392255625,1761282428310,500.0,0.00020835,2]
[392255626,1761282428337,500.0,0.00020835,2]
[392255627,1761282428384,500.0,0.00020835,2]
[392255628,1761282428414,500.0,0.00020835,2]
[392255629,1761282428442,500.0,0.00020835,2]
[392255630,1761282428470,500.0,0.00020835,2]
[392255631,1761282428502,365.88900007,0.00020835,2]
[392255632,1761282428525,134.11099993,0.00020835,2]
[392255633,1761282428583,500.0,0.00020835,2]
[392255634,1761282436672,1246.66,0.00020826,10]
[392255635,1761282437769,992.9396561,0.00020835,2]
[392255636,1761282441987,5000.0,0.00019178,2]
[392255637,1761282442423,2126.29934397,0.00020836,2]
[392255638,1761282442446,945.18171191,0.00020836,2]
[392255640,1761282448534,1038.88,0.00020826,10]
[392255641,1761282449525,500.0,0.00020835,2]
[392255642,1761282449554,500.0,0.00020835,2]
[392255643,1761282449581,500.0,0.00020835,2]
[392255644,1761282449609,500.0,0.00020835,2]
[392255645,1761282449638,500.0,0.00020835,2]
[392255646,1761282449665,500.0,0.00020835,2]
[392255647,1761282449694,500.0,0.00020835,2]
[392255648,1761282449722,500.0,0.00020835,2]
[392255649,1761282449752,500.0,0.00020835,2]
[392255650,1761282449783,500.0,0.00020835,2]
[392255651,1761282449812,500.0,0.00020835,2]
[392255652,1761282449840,500.0,0.00020835,2]
[392255653,1761282449872,500.0,0.00020835,2]
[392255654,1761282449901,500.0,0.00020835,2]
[392255655,1761282449935,500.0,0.00020835,2]
[392255656,1761282449963,500.0,0.00020835,2]
[392255657,1761282449991,15.94828809,0.00020835,2]
[392255658,1761282450014,484.05171191,0.00020835,2]
[392255659,1761282450042,500.0,0.00020835,2]
[392255660,1761282450070,500.0,0.00020835,2]
[392255661,1761282450098,390.47769066,0.00020835,2]
[392255662,1761282450129,500.0,0.00020835,2]
[392255663,1761282450161,500.0,0.00020835,2]
[392255664,1761282450188,500.0,0.00020835,2]
[392255665,1761282450216,500.0,0.00020835,2]
[392255666,1761282450898,5000.0,0.00020836,2]
[392255667,1761282451946,1028.346032,0.00013699,2]
[392255668,1761282452142,97.13456543,0.00020187,2]
[392255669,1761282452164,931.21146657,0.00020187,2]
[392255670,1761282453251,500.0,0.00030137,120]
[392255671,1761282457379,1200.0,0.00020835,2]
[392255672,1761282460005,865.73,0.00020826,10]
[392255673,1761282463083,157.24429981,0.00020736,2]
[392255674,1761282463500,500.0,0.00030137,120]
[392255675,1761282471282,721.44,0.00020826,10]
[392255676,1761282473964,3942.72453393,0.00020836,2]
[392255677,1761282478299,500.0,0.00020835,2]
[392255678,1761282478328,1369.61237778,0.00020835,2]
[392255679,1761282478355,500.0,0.00020835,2]
[392255680,1761282478388,500.0,0.00020835,2]
[392255681,1761282478415,243.25878848,0.00020835,2]
[392255682,1761282478439,256.74121152,0.00020835,2]
[392255683,1761282478466,185.76138126,0.00020835,2]
[392255684,1761282478608,500.0,0.00020835,2]
[392255685,1761282478636,500.0,0.00020835,2]
[392255686,1761282478672,1369.61237778,0.00020835,2]
[392255687,1761282478701,500.0,0.00020835,2]
[392255688,1761282478938,500.0,0.00030137,120]
[392255689,1761282478967,500.0,0.00020835,2]
[392255690,1761282479023,1369.61237778,0.00020835,2]
[392255691,1761282479073,500.0,0.00020835,2]
[392255692,1761282479333,500.0,0.00020835,2]
[392255693,1761282479378,500.0,0.00020835,2]
[392255694,1761282479406,1369.61237778,0.00020835,2]
[392255695,1761282479738,1369.61237778,0.00020835,2]
[392255696,1761282479779,500.0,0.00020835,2]
[392255697,1761282480070,79.0578961,0.00020835,2]
[392255698,1761282480099,1290.55448168,0.00020835,2]
[392255699,1761282480136,500.0,0.00020835,2]
[392255700,1761282480657,1369.61237778,0.00020835,2]
[392255701,1761282480689,500.0,0.00020835,2]
[392255702,1761282481067,500.0,0.00020835,2]
[392255703,1761282481098,1369.61237778,0.00020835,2]
[392255704,1761282481197,500.0,0.00020835,2]
[392255705,1761282481266,500.0,0.00020835,2]
[392255706,1761282481319,500.0,0.00020835,2]
[392255707,1761282481360,235.63654252,0.00020835,2]
[392255708,1761282481415,500.0,0.00020835,2]
[392255709,1761282481450,1369.61237778,0.00020835,2]
[392255710,1761282482507,601.2,0.00020826,10]
[392255711,1761282482605,263.78184246,0.00020835,2]
[392255712,1761282482631,36.21815754,0.00020835,2]
[392255713,1761282483781,500.0,0.00020835,2]
[392255714,1761282483857,516.66024377,0.00020835,2]
[392255715,1761282483896,1369.61237778,0.00020835,2]
[392255716,1761282483934,1369.61237778,0.00020835,2]
[392255717,1761282483971,1369.61237778,0.00020835,2]
[392255718,1761282484003,500.0,0.00020835,2]
[392255719,1761282484040,1369.61237778,0.00020835,2]
[392255720,1761282484070,1369.61237778,0.00020835,2]
[392255721,1761282484098,1369.61237778,0.00020835,2]
[392255722,1761282484128,229.45733201,0.00020835,2]
[392255723,1761282484153,270.54266799,0.00020835,2]
[392255724,1761282484183,1369.61237778,0.00020835,2]
[392255725,1761282484210,1369.61237778,0.00020835,2]
[392255726,1761282484239,1369.61237778,0.00020835,2]
[392255727,1761282484268,1369.61237778,0.00020835,2]
[392255728,1761282484296,1369.61237778,0.00020835,2]
[392255729,1761282484326,1369.61237778,0.00020835,2]
[392255730,1761282484355,1369.61237778,0.00020835,2]
[392255731,1761282484433,142.18068755,0.00020835,2]
[392255732,1761282484466,202.81,0.00015984,2]
[392255733,1761282497035,-150.0,0.0001971,2]
[392255734,1761282497070,-150.0,0.00020649,2]
[392255735,1761282500633,500.0,0.00030137,120]
[392255736,1761282509949,196.0,0.00016,2]
[392255737,1761282510004,196.0,0.0001607,2]
[392255738,1761282510063,196.0,0.0001614,2]
[392255739,1761282510232,196.0,0.0001621,2]
[392255740,1761282510267,196.0,0.0001628,2]
[392255741,1761282510295,196.0,0.0001635,2]
[392255742,1761282510332,196.0,0.0001642,2]
[392255743,1761282510413,196.0,0.0001649,2]
[392255744,1761282510510,196.0,0.0001656,2]
[392255745,1761282510566,196.0,0.0001663,2]
[392255746,1761282510624,196.0,0.000167,2]
[392255747,1761282510776,196.0,0.0001677,2]
[392255748,1761282510840,196.0,0.0001684,2]
[392255749,1761282510906,196.0,0.0001691,2]
[392255750,1761282510969,196.0,0.0001698,2]
[392255751,1761282511023,196.0,0.0001705,2]
[392255752,1761282511051,1407.0774645,0.0001986,2]
[392255753,1761282511087,196.0,0.0001712,2]
[392255754,1761282511189,196.0,0.0001719,2]
[392255755,1761282511228,196.0,0.0001726,2]
[392255756,1761282511452,196.0,0.0001733,2]
[392255757,1761282511515,196.0,0.000174,2]
[392255758,1761282511579,196.0,0.0001747,2]
[392255759,1761282511635,196.0,0.0001754,2]
[392255760,1761282511696,196.0,0.0001761,2]
[392255761,1761282511761,196.0,0.0001768,2]
[392255762,1761282511817,196.0,0.0001775,2]
[392255763,1761282511880,196.0,0.0001782,2]
[392255764,1761282511942,196.0,0.0001789,2]
[392255765,1761282512029,196.0,0.0001796,2]
[392255766,1761282512163,196.0,0.0001803,2]
[392255767,1761282512226,390.18514478,0.000181,2]
[392255768,1761282517695,1722.74739072,0.00020736,2]
[392255769,1761282517719,2139.73041176,0.00020736,2]
[392255770,1761282533308,2438.27610088,0.00020773,2]
[392255771,1761282562744,150.0,0.00019681,2]
[392255772,1761282563153,150.0,0.00020618,2]
[392255773,1761282579240,749.44160146,0.00020736,2]
[392255774,1761282629942,313.50925724,0.00016,2]
[392255775,1761282630591,866.93328416,0.00020736,2]
[392255782,1761282631822,150.0,0.0001982,2]
[392255811,1761282632185,-800.0,0.00020782,2]
[392255813,1761282632195,-41.6034007,0.00020824,2]
[392255815,1761282632206,-252.3628881,0.00020824,2]
[392255817,1761282632218,-906.0337112,0.00020824,2]
[392255819,1761282632227,-300.0,0.00020825,2]
[392255821,1761282632236,-204.69137269,0.00020825,2]
[392255826,1761282632274,150.0,0.00020764,2]
[392255830,1761282632286,-95.30862731,0.00020825,2]
[392255832,1761282632295,-300.0,0.00020825,2]
[392255834,1761282632305,-300.0,0.00020825,2]
[392255836,1761282632314,-300.0,0.00020825,2]
[392255838,1761282632323,-265.39,0.00020826,3]
[392255840,1761282632332,-796.21,0.00020826,3]
[392255841,1761282632341,-397.22773849,0.00020826,2]
[392255843,1761282632350,-1424.1,0.00020826,10]
[392255846,1761282632360,-158.815693,0.00020834,7]
[392255847,1761282632369,-151.0,0.00020834,7]
[392255849,1761282632378,-151.0,0.00020834,7]
[392255852,1761282632388,-151.0,0.00020834,7]
[392255853,1761282632397,-151.0,0.00020834,7]
[392255855,1761282632406,-282.229606,0.00020834,7]
[392255857,1761282632416,-69634.83998912,0.00020836,2]
[392255901,1761282637963,-488.57536421,0.00020826,10]
[392255906,1761282638019,-698.17463579,0.00020826,10]
[392255908,1761282638029,-14233.2280885,0.00020836,2]
[392255909,1761282638040,-5995.51419188,0.00020836,2]
[392255910,1761282638051,-910.43206982,0.00020836,2]
[392255911,1761282638063,-762.98972031,0.00020836,2]
[392255912,1761282638073,-791.15330908,0.00020836,2]
[392255913,1761282638084,-534.94906441,0.00020836,2]
[392255915,1761282638095,-1581.13797745,0.00020836,2]
[392255916,1761282638105,-294.54076015,0.00020836,2]
[392256005,1761282643314,-68171.1742169,0.00020836,2]
[392256027,1761282646447,-112252.79587209,0.00020836,2]
[392256028,1761282646457,-50000.0,0.00020836,2]
[392256029,1761282646467,-151.0,0.00020836,7]
[392256030,1761282646476,-200.0,0.00020836,10]
[392256031,1761282646486,-200.0,0.00020836,10]
[392256032,1761282646496,-184.354338,0.00020836,10]
[392256033,1761282646505,-500.0,0.00020873,2]
[392256034,1761282646515,-598.32792681,0.00020873,2]
[392256035,1761282646524,-500.35078704,0.00020873,2]
[392256036,1761282646534,-500.0,0.00020873,2]
[392256037,1761282646543,-296.19228002,0.00020873,2]
[392256038,1761282646552,-500.0,0.00020873,2]
[392256039,1761282646562,-500.0,0.00020873,2]
[392256040,1761282646574,-473.25,0.0002089,2]
[392256041,1761282646584,-171.3519006,0.000209,2]
[392256042,1761282646593,-172.23,0.00020924,3]
[392256043,1761282646603,-151.0,0.00020924,2]
[392256044,1761282646612,-151.0,0.00020924,2]
[392256045,1761282646622,-236.268617,0.00020924,2]
[392256046,1761282646631,-516.7,0.00020925,3]
[392256047,1761282646641,-1000.0,0.00020925,2]
[392256048,1761282646651,-1000.0,0.00020925,2]
[392256049,1761282646661,-893.11068162,0.00020925,2]
[392256050,1761282646670,-151.0,0.00020925,2]
[392256051,1761282646679,-151.0,0.00020925,2]
[392256052,1761282646688,-151.0,0.00020925,2]
[392256053,1761282646698,-151.0,0.00020925,2]
[392256054,1761282646707,-151.0,0.00020925,2]
[392256055,1761282646717,-151.0,0.00020925,2]
[392256056,1761282646726,-151.0,0.00020925,2]
[392256057,1761282646736,-151.0,0.00020925,2]
[392256058,1761282646745,-151.0,0.00020925,2]
[392256059,1761282646755,-152.0246658,0.00020925,2]
[392256060,1761282646765,-151.0,0.00020925,2]
[392256061,1761282646774,-151.0,0.00020925,2]
[392256062,1761282646784,-197.46661745,0.00020925,2]
[392256063,1761282646794,-151.0,0.00020934,7]
[392256064,1761282646803,-151.0,0.00020934,7]
[392256065,1761282646813,-151.0,0.00020934,7]
[392256066,1761282646824,-151.0,0.00020934,7]
[392256067,1761282646834,-151.0,0.00020934,7]
[392256068,1761282646843,-151.0,0.00020934,7]
[392256069,1761282646853,-151.0,0.00020934,7]
[392256070,1761282646863,-151.0,0.00020934,7]
[392256071,1761282646872,-151.0,0.00020935,7]
[392256072,1761282646882,-151.0,0.00020935,7]
[392256073,1761282646891,-1000.0,0.00020935,2]
[392256074,1761282646901,-1000.0,0.00020935,2]
[392256075,1761282646911,-1000.0,0.00020935,2]
[392256076,1761282646924,-1000.0,0.00020935,2]
[392256077,1761282646934,-1000.0,0.00020935,2]
[392256078,1761282646943,-1000.0,0.00020935,2]
[392256079,1761282646953,-1000.0,0.00020935,2]
[392256080,1761282646962,-1000.0,0.00020935,2]
[392256081,1761282646971,-1000.0,0.00020935,2]
[392256082,1761282646980,-1000.0,0.00020935,2]
[392256083,1761282646990,-1000.0,0.00020935,2]
[392256084,1761282646999,-1000.0,0.00020935,2]
[392256085,1761282647009,-1000.0,0.00020935,2]
[392256086,1761282647019,-1000.0,0.00020935,2]
[392256087,1761282647028,-1000.0,0.00020935,2]
[392256088,1761282647037,-1000.0,0.00020935,2]
[392256089,1761282647047,-1000.0,0.00020935,2]
[392256090,1761282647056,-1000.0,0.00020935,2]
[392256091,1761282647065,-1000.0,0.00020935,2]
[392256092,1761282647077,-1000.0,0.00020935,2]
[392256093,1761282647086,-1000.0,0.00020935,2]
[392256094,1761282647095,-1000.0,0.00020935,2]
[392256095,1761282647105,-1000.0,0.00020935,2]
[392256096,1761282647115,-1000.0,0.00020935,2]
[392256097,1761282647124,-1000.0,0.00020935,2]
[392256098,1761282647134,-1000.0,0.00020935,2]
[392256099,1761282647144,-1000.0,0.00020935,2]
[392256100,1761282647153,-1000.0,0.00020935,2]
[392256101,1761282647162,-1000.0,0.00020935,2]
[392256102,1761282647171,-1000.0,0.00020935,2]
[392256103,1761282647181,-1000.0,0.00020935,2]
[392256104,1761282647190,-1000.0,0.00020935,2]
[392256105,1761282647199,-1000.0,0.00020935,2]
[392256106,1761282647208,-1000.0,0.00020935,2]
[392256107,1761282647218,-1000.0,0.00020935,2]
[392256108,1761282647226,-1000.0,0.00020935,2]
[392256109,1761282647239,-1000.0,0.00020935,2]
[392256110,1761282647249,-1000.0,0.00020935,2]
[392256111,1761282647258,-1000.0,0.00020935,2]
[392256112,1761282647267,-1000.0,0.00020935,2]
[392256113,1761282647277,-1000.0,0.00020935,2]
[392256114,1761282647286,-1000.0,0.00020935,2]
[392256115,1761282647296,-1000.0,0.00020935,2]
[392256116,1761282647305,-1000.0,0.00020935,2]
[392256117,1761282647315,-1000.0,0.00020935,2]
[392256118,1761282647327,-1000.0,0.00020935,2]
[392256119,1761282647337,-1000.0,0.00020935,2]
[392256120,1761282647346,-1000.0,0.00020935,2]
[392256121,1761282647355,-1000.0,0.00020935,2]
[392256122,1761282647364,-1000.0,0.00020935,2]
[392256123,1761282647374,-1000.0,0.00020935,2]
[392256124,1761282647383,-1000.0,0.00020935,2]
[392256125,1761282647393,-1000.0,0.00020935,2]
[392256126,1761282647402,-1000.0,0.00020935,2]
[392256127,1761282647411,-1000.0,0.00020935,2]
[392256128,1761282647420,-1022.694954,0.00020935,2]
[392256129,1761282647430,-500.0,0.00020935,2]
[392256130,1761282647440,-500.0,0.00020935,7]
[392256131,1761282647449,-500.0,0.00020936,2]
[392256132,1761282647459,-500.0,0.00020936,2]
[392256133,1761282647468,-500.0,0.00020936,2]
[392256134,1761282647478,-621.74395474,0.00020936,2]
[392256135,1761282647487,-111933.59302639,0.00020938,2]
[392256136,1761282647501,-340.66259635,0.00020938,2]
[392256137,1761282650055,-21507.67372874,0.00020938,2]